bitfinex/quotes_ETHUSD_20250220
["timestamp","ask_amount","ask_price","bid_price","bid_amount"]
[1740056662652,4.44714,2743.3,2743.1,0.00384334]
[1740056663020,9.68714,2743.3,2743.1,0.00384334]
[1740056664974,6.0419,2743.3,2743.1,0.00384334]
[1740056665770,6.0419,2743.3,2743.2,0.04732894]
[1740056668251,5.24,2743.3,2743.2,0.04732894]
[1740056668643,5.24,2743.7,2743.3,0.7748]
[1740056668856,6.0259,2743.7,2743.3,0.7748]
[1740056669057,3.64484,2743.6,2743.4,0.04723247]
[1740056669238,3.64484,2743.6,2743.1,4.42414334]
[1740056669425,3.64484,2743.6,2743.2,0.04723989]
[1740056669941,3.64511,2743.4,2743.2,0.04723989]
[1740056670257,4.47264,2743.3,2743.2,0.04723989]
[1740056671963,9.71264,2743.3,2743.2,0.04723989]
[1740056674460,6.0674,2743.3,2743.2,0.04723989]
[1740056677060,9.71264,2743.3,2743.2,0.04723989]
[1740056677270,6.0674,2743.3,2743.1,0.00384334]
[1740056677432,6.0674,2743.3,2743.2,0.04557422]
[1740056678052,5.24,2743.3,2743.2,0.04557422]
[1740056681036,5.24,2743.3,2743.2,3.69094422]
[1740056681369,5.24,2743.3,2743.2,4.48484422]
[1740056682281,5.24,2743.3,2743.2,0.83947422]
[1740056683778,5.24,2743.6,2743.2,0.83947422]
[1740056684148,5.24,2743.6,2743.2,4.48481422]
[1740056684555,5.24,2743.6,2743.3,3.64515]
[1740056684740,5.24,2743.6,2743.4,3.64506]
[1740056685138,5.24,2743.6,2743.5,0.04548516]
[1740056685736,5.24,2743.6,2743.3,3.64524]
[1740056685934,5.24,2743.6,2743.5,0.04548516]
[1740056686171,5.24,2743.6,2743.3,3.64524]
[1740056686338,5.24,2743.6,2743.1,0.00384334]
[1740056686339,3.0,2743.5,2743.1,0.00384334]
[1740056686536,4.43987,2743.2,2743.1,0.00384334]
[1740056686739,0.7945,2743.2,2743.1,0.00384334]
[1740056687176,4.43987,2743.2,2743.1,0.00384334]
[1740056687689,3.0,2743.3,2743.1,0.00384334]
[1740056687690,3.1496,2743.3,2743.1,0.00384334]
[1740056689199,6.79496,2743.3,2743.1,0.00384334]
[1740056689690,3.64537,2743.2,2743.1,0.00384334]
[1740056690974,4.42707,2743.2,2743.1,0.00384334]
[1740056693400,4.42707,2743.2,2743.1,0.04014165]
[1740056693710,4.42707,2743.2,2743.1,0.00384334]
[1740056694609,4.42707,2743.2,2743.1,0.04014165]
[1740056694903,13.21707,2743.2,2743.1,0.00384334]
[1740056695070,14.11491563,2743.2,2743.1,0.00384334]
[1740056695253,14.69361366,2743.2,2743.1,0.00384334]
[1740056695457,13.79576803,2743.2,2743.1,0.00384334]
[1740056697189,13.21707,2743.2,2743.1,0.00384334]
[1740056701204,13.21707,2743.2,2743.1,3.34e-06]
[1740056703622,12.66707,2743.2,2743.1,3.34e-06]
[1740056703769,11.88537,2743.2,2743.1,3.34e-06]
[1740056704505,5.24,2743.2,2743.1,3.34e-06]
[1740056705225,5.24,2743.2,2743.1,0.03415908]
[1740056705515,5.24,2743.2,2743.1,0.81630334]
[1740056705691,5.24,2743.2,2743.1,3.34e-06]
[1740056705993,8.88537,2743.2,2743.1,0.03433722]
[1740056706163,8.88537,2743.2,2743.1,3.34e-06]
[1740056706164,5.24,2743.2,2743.1,3.34e-06]
[1740056706359,5.24,2743.2,2743.1,0.03433722]
[1740056706570,5.24,2743.2,2743.1,3.34e-06]
[1740056706995,5.24,2743.2,2743.1,0.03433722]
[1740056707174,5.24,2743.2,2743.1,3.34e-06]
[1740056707375,5.24,2743.2,2743.1,0.03433722]
[1740056707695,9.03484,2743.3,2743.1,0.03433722]
[1740056708194,5.3896,2743.3,2743.1,0.03433722]
[1740056709087,5.3896,2743.3,2743.2,3.64537]
[1740056709287,5.3896,2743.3,2743.2,0.8147]
[1740056709602,5.3896,2743.3,2743.2,0.84889285]
[1740056713403,5.3896,2743.3,2743.2,4.49426285]
[1740056713805,5.3896,2743.3,2743.2,0.84889285]
[1740056715181,0.1496,2743.3,2743.2,0.84889285]
[1740056715717,0.1496,2743.3,2743.2,4.49426285]
[1740056715883,0.1496,2743.3,2743.2,5.30823247]
[1740056716296,0.1496,2743.3,2743.2,5.27403962]
[1740056717622,0.1496,2743.3,2743.2,4.46007]
[1740056718050,0.1496,2743.3,2743.2,0.8147]
[1740056720219,0.1496,2743.3,2743.1,3.34e-06]
[1740056721560,0.1496,2743.3,2743.2,3.64537]
[1740056721925,0.1496,2743.3,2743.2,4.43617]
[1740056722144,0.1496,2743.3,2743.2,5.24432533]
[1740056728425,0.1496,2743.3,2743.2,8.66990288]
[1740056728637,0.1496,2743.3,2743.2,8.93090288]
[1740056730825,0.1496,2743.3,2743.2,5.50532533]
[1740056733139,0.1496,2743.3,2743.2,8.93090288]
[1740056738813,1e-05,2743.3,2743.2,8.93090288]
[1740056739830,1e-05,2743.3,2743.2,11.93090288]
[1740056746486,1e-05,2743.3,2743.2,11.66990288]
[1740056747086,1e-05,2743.3,2743.2,11.93090288]
[1740056756808,1e-05,2743.3,2743.2,11.93090288]
[1740056761628,1e-05,2743.3,2743.2,12.48090288]
[1740056761764,3.64308,2745.0,2743.2,12.48090288]
[1740056761765,0.8286,2744.3,2744.2,3.64404]
[1740056761972,0.8286,2744.3,2744.2,4.63286]
[1740056762522,0.8286,2744.3,2744.2,3.90404]
[1740056768179,0.7505,2744.5,2744.4,3.64378]
[1740056768382,3.42557755,2745.4,2744.4,3.64378]
[1740056768383,3.64272,2745.2,2744.4,3.64378]
[1740056768720,0.7505,2745.1,2744.4,0.73293576]
[1740056768889,0.8056,2744.8,2744.2,3.90404]
[1740056769082,0.8056,2744.8,2744.0,3.91198932]
[1740056769083,0.8056,2744.7,2744.3,3.64381]
[1740056769287,0.8056,2744.7,2744.4,3.90369]
[1740056769595,0.8056,2744.7,2744.6,3.64351]
[1740056770329,0.8056,2744.7,2744.5,3.64358]
[1740056771117,0.8056,2744.7,2744.5,3.64356]
[1740056771508,0.8312,2744.6,2743.4,1.73621061]
[1740056771821,0.8312,2744.6,2744.1,3.64418]
[1740056772034,0.8312,2744.6,2744.2,3.64402]
[1740056772393,0.8312,2744.6,2744.3,0.26]
[1740056772590,4.47478,2744.6,2744.0,3.64423]
[1740056772892,0.7879,2744.4,2744.1,0.26]
[1740056773092,0.7879,2744.3,2744.1,0.26]
[1740056773730,0.7879,2744.3,2744.1,3.90414]
[1740056773945,0.7879,2744.3,2744.2,3.64404]
[1740056775039,0.7873,2744.5,2744.4,3.64366]
[1740056775186,0.7873,2744.5,2744.3,3.64389]
[1740056775388,0.7873,2744.1,2743.5,4.47036]
[1740056775592,0.7873,2744.1,2743.7,3.64462]
[1740056775836,0.7873,2744.1,2743.8,3.64447]
[1740056776187,0.7873,2744.1,2743.6,7.28956]
[1740056776392,0.8118,2744.0,2743.7,0.262]
[1740056777026,0.8118,2744.0,2743.4,5.38131061]
[1740056777342,0.8118,2744.0,2743.6,3.6448]
[1740056777525,0.8118,2744.0,2743.7,0.262]
[1740056778594,0.8118,2744.0,2743.7,0.261]
[1740056779340,4.45615,2744.0,2743.7,0.261]
[1740056779509,0.7733,2743.9,2743.7,0.261]
[1740056779711,0.7733,2743.9,2743.5,3.64494]
[1740056779712,0.7733,2743.9,2743.6,0.261]
[1740056780351,0.7733,2743.9,2743.5,3.64494]
[1740056780644,0.7733,2743.9,2743.6,0.261]
[1740056781309,0.7733,2743.9,2743.4,5.38123061]
[1740056781515,0.8178,2743.8,2743.5,0.261]
[1740056782304,0.8178,2743.8,2743.6,0.261]
[1740056782545,0.8178,2743.8,2743.4,9.02625061]
[1740056782751,0.8178,2743.8,2743.5,3.90597]
[1740056782957,0.8178,2743.8,2743.5,0.261]
[1740056783303,0.8178,2743.8,2743.4,5.38123061]
[1740056783509,0.8178,2743.8,2743.6,0.261]
[1740056785053,0.8178,2743.8,2743.6,3.90574]
[1740056785610,0.8178,2743.8,2743.7,3.64471]
[1740056786720,0.7742,2744.2,2743.9,3.64444]
[1740056786920,0.7742,2744.2,2744.0,3.64423]
[1740056787750,0.7742,2744.2,2743.9,3.64432]
[1740056788738,0.7742,2744.2,2744.0,0.261]
[1740056790417,0.7742,2744.2,2744.0,3.90522]
[1740056791735,0.7742,2744.2,2744.1,3.64418]
[1740056791938,0.8133,2744.7,2744.0,0.261]
[1740056792138,0.8133,2744.7,2744.3,3.64391]
[1740056792661,0.8133,2744.7,2744.0,3.90526]
[1740056792963,0.8133,2744.7,2744.4,3.64372]
[1740056793143,0.8133,2744.7,2744.4,3.64369]
[1740056793857,0.8133,2744.7,2744.5,3.64357]
[1740056794063,0.8133,2744.7,2744.4,3.64369]
[1740056794239,0.8133,2744.7,2744.4,4.088879]
[1740056794448,0.8133,2744.7,2744.5,3.64358]
[1740056795713,0.8133,2744.7,2744.4,4.088879]
[1740056796153,0.8133,2744.7,2744.4,7.732559]
[1740056797841,0.8133,2744.7,2744.5,3.64362]
[1740056798047,0.8133,2744.7,2744.6,3.64351]
[1740056798726,0.8133,2744.7,2744.5,4.4168799]
[1740056804238,0.8133,2744.7,2744.6,0.261]
[1740056804939,0.8209,2745.0,2744.6,3.90451]
[1740056805248,4.46391,2745.0,2744.6,3.90451]
[1740056805663,0.8209,2745.0,2744.6,3.90444]
[1740056805846,4.46388,2745.0,2744.6,4.37220899]
[1740056806670,0.8209,2745.0,2744.6,4.11120899]
[1740056806852,0.8209,2745.0,2744.7,0.26]
[1740056808454,4.4639,2745.0,2744.7,0.26]
[1740056808863,0.8209,2745.0,2744.7,3.90336]
[1740056809178,0.8209,2745.0,2744.7,0.26]
[1740056810340,0.8209,2745.0,2744.6,4.11118899]
[1740056810541,4.46391,2745.0,2744.7,0.26]
[1740056811974,4.46391,2745.0,2744.6,4.11118899]
[1740056812182,3.64312,2744.9,2744.7,0.26]
[1740056812775,0.8209,2745.0,2744.7,0.26]
[1740056813147,4.46395,2745.0,2744.7,0.26]
[1740056814277,0.8209,2745.0,2744.7,0.26]
[1740056814477,0.8209,2745.0,2744.7,0.6971209]
[1740056814978,0.8209,2745.0,2744.7,4.3404709]
[1740056815602,4.4639,2745.0,2744.7,0.6971209]
[1740056817847,0.8209,2745.0,2744.7,0.6971209]
[1740056818350,4.46389,2745.0,2744.7,0.6971209]
[1740056819674,4.46389,2745.0,2744.7,0.4371209]
[1740056819866,4.46389,2745.0,2744.8,0.26]
[1740056820594,0.8209,2745.0,2744.8,0.26]
[1740056821096,0.8209,2745.0,2744.7,3.90331]
[1740056821410,0.8209,2745.0,2744.8,0.390331]
[1740056821764,4.46389,2745.0,2744.8,0.390331]
[1740056823898,0.8209,2745.0,2744.8,0.390331]
[1740056826371,0.8209,2745.0,2744.7,3.90336]
[1740056826569,0.7685,2745.3,2744.8,0.8059]
[1740056826782,0.7685,2745.7,2745.2,3.64272]
[1740056826991,4.41064,2745.7,2745.2,3.64272]
[1740056827175,0.7685,2745.7,2745.2,4.45922]
[1740056827485,4.41065,2745.7,2745.3,0.445922]
[1740056827700,0.7685,2745.7,2745.4,3.64243]
[1740056828269,0.7685,2745.7,2745.3,4.088502]
[1740056828885,3.64219,2745.6,2745.3,0.445922]
[1740056829613,0.7685,2745.7,2745.3,0.445922]
[1740056829789,0.7685,2745.7,2745.3,4.088412]
[1740056829987,4.41057,2745.7,2745.4,1.1137532]
[1740056830172,4.41057,2745.7,2745.4,0.259]
[1740056830606,0.7685,2745.7,2745.4,0.259]
[1740056830874,0.7685,2745.7,2745.4,3.90142]
[1740056831309,3.64175,2746.0,2745.5,3.64232]
[1740056831310,0.7534,2745.9,2745.5,3.64232]
[1740056831625,0.7534,2745.9,2745.6,3.64212]
[1740056831794,0.7534,2745.9,2745.7,0.728444]
[1740056832736,0.7534,2745.9,2745.6,3.64218]
[1740056833636,0.7534,2746.1,2745.7,3.64204]
[1740056833830,0.7534,2746.1,2745.7,3.64198]
[1740056834715,0.7534,2746.1,2745.8,3.64181]
[1740056834910,0.8302,2746.3,2746.0,3.64166]
[1740056835111,0.8302,2746.3,2745.9,3.64178]
[1740056835327,3.8302,2746.3,2745.9,3.64178]
[1740056835510,4.47149,2746.3,2745.9,3.64178]
[1740056835709,4.47149,2746.3,2745.7,7.28389]
[1740056835912,8.11285,2746.3,2745.8,3.64189]
[1740056836137,3.6414,2746.2,2745.8,3.64189]
[1740056836340,4.47149,2746.3,2745.8,3.64189]
[1740056836842,4.47149,2746.3,2745.9,3.64176]
[1740056837002,4.47149,2746.3,2745.6,3.64208]
[1740056837338,4.47149,2746.3,2745.8,3.64189]
[1740056837524,3.6414,2746.2,2745.8,3.64189]
[1740056837685,4.47149,2746.3,2745.8,3.64189]
[1740056837889,4.47149,2746.3,2745.8,3.64182]
[1740056839714,0.8302,2746.3,2746.1,3.6415]
[1740056840075,0.8302,2746.3,2745.9,0.7898]
[1740056840076,4.47152,2746.3,2745.9,4.43158]
[1740056840367,4.47152,2746.3,2745.9,0.7898]
[1740056841824,3.64114,2746.4,2745.9,1.6413088]
[1740056842236,3.6414,2746.2,2745.7,4.43178]
[1740056843134,3.64114,2746.4,2745.9,3.64176]
[1740056843334,3.64114,2746.4,2746.0,3.64165]
[1740056843637,4.4271,2746.5,2746.0,3.64158]
[1740056843871,4.4271,2746.5,2746.1,3.64149]
[1740056844076,4.4271,2746.5,2746.2,0.987307]
[1740056844277,0.7861,2746.5,2746.2,0.987307]
[1740056844874,3.64093,2746.6,2746.2,4.628687]
[1740056845078,3.64093,2746.6,2746.2,0.987307]
[1740056845379,3.64093,2746.6,2746.2,4.628687]
[1740056846143,0.7818,2746.7,2746.3,3.6412]
[1740056846367,0.7818,2746.7,2746.3,0.90571993]
[1740056846569,0.7818,2746.7,2746.3,4.54690993]
[1740056846761,0.7818,2746.7,2746.4,3.64109]
[1740056847450,0.7818,2746.7,2746.4,3.64105]
[1740056847700,3.64066,2746.8,2746.3,4.54695993]
[1740056847880,3.64066,2746.8,2746.4,0.84472599]
[1740056848449,4.42937,2746.9,2746.5,3.64097]
[1740056848684,4.42937,2746.9,2746.4,4.48582599]
[1740056849546,4.42937,2746.9,2746.4,5.24416599]
[1740056849750,3.64064,2746.8,2746.5,0.5244166]
[1740056849946,3.64086,2746.6,2746.5,0.5244166]
[1740056850259,3.64073,2746.7,2746.2,4.6587]
[1740056851159,0.792,2746.6,2745.8,3.64192]
[1740056851360,0.792,2746.6,2745.9,3.9007]
[1740056851361,4.43291,2746.6,2745.9,3.9007]
[1740056851674,3.64113,2746.4,2746.0,3.6416]
[1740056851982,3.64113,2746.4,2745.9,3.90079]
[1740056852285,3.64113,2746.4,2745.9,4.368975]
[1740056853089,3.64133,2746.3,2745.9,0.727255]
[1740056853976,4.42593,2746.2,2745.9,0.468255]
[1740056854479,4.42593,2746.2,2746.0,0.26]
[1740056855195,4.42593,2746.2,2746.0,0.6970135]
[1740056855865,0.7845,2746.2,2746.0,0.6970135]
[1740056856065,4.4257,2746.4,2746.0,0.6970135]
[1740056857091,3.64132,2746.3,2746.0,0.6970135]
[1740056858291,3.64163,2746.1,2745.7,0.7816]
[1740056858493,4.41423,2746.1,2746.0,0.26]
[1740056859389,4.41423,2746.1,2745.6,3.64217]
[1740056859590,4.41423,2746.1,2745.9,0.26]
[1740056859790,0.7726,2746.1,2745.9,0.26]
[1740056860088,4.41422,2746.1,2745.9,0.26]
[1740056860258,3.64166,2746.0,2745.9,0.26]
[1740056861097,3.64166,2746.0,2745.8,0.26]
[1740056861890,3.64174,2746.0,2745.8,0.26]
[1740056862468,0.7726,2746.1,2745.4,0.8224]
[1740056862668,3.64193,2745.8,2745.4,0.8224]
[1740056862876,0.8015,2745.7,2745.5,0.26]
[1740056863073,0.8015,2745.7,2745.6,0.26]
[1740056864901,4.44355,2745.7,2745.6,0.26]
[1740056865104,0.8015,2745.7,2745.5,0.26]
[1740056865970,0.8015,2745.7,2745.5,3.90231]
[1740056866305,0.8015,2745.7,2745.5,0.26]
[1740056868110,3.64193,2745.8,2745.5,0.26]
[1740056870015,4.4597,2745.9,2745.5,0.26]
[1740056871219,0.7799,2746.1,2745.6,0.7718]
[1740056871415,3.64172,2746.0,2745.6,0.7718]
[1740056871614,7.28349,2746.0,2745.6,0.7718]
[1740056871788,3.64181,2745.9,2745.6,0.7718]
[1740056873228,7.28349,2746.0,2745.6,0.7718]
[1740056873717,3.6418,2745.9,2745.6,0.7718]
[1740056874222,3.64168,2746.0,2745.6,0.7718]
[1740056875190,0.7799,2746.1,2745.6,0.7718]
[1740056875390,3.64166,2746.0,2745.6,4.41396]
[1740056875616,0.7799,2746.1,2745.6,1.239196]
[1740056875879,0.7799,2746.1,2745.7,3.64196]
[1740056876819,7.28293,2746.2,2745.7,3.64196]
[1740056877007,3.64141,2746.2,2745.7,3.64195]
[1740056877390,0.7647,2746.3,2745.9,3.64171]
[1740056877696,0.7647,2746.3,2745.9,4.005881]
[1740056877697,4.40598,2746.3,2745.9,4.005881]
[1740056878032,0.7647,2746.3,2746.0,3.6416]
[1740056878322,0.7647,2746.3,2746.0,3.64166]
[1740056878531,0.758,2745.5,2745.0,2.31093916]
[1740056878688,0.7718,2745.7,2745.1,0.262]
[1740056878891,0.7718,2745.7,2745.2,0.69736992]
[1740056879286,4.41387,2745.7,2745.2,0.69736992]
[1740056879483,3.64241,2745.5,2745.1,0.262]
[1740056882232,3.64257,2745.4,2745.1,0.262]
[1740056882437,3.6424,2745.5,2745.1,0.262]
[1740056882735,7.28483,2745.5,2745.0,3.06883916]
[1740056883099,3.64245,2745.4,2745.1,0.262]
[1740056883438,3.6424,2745.5,2745.1,0.69738792]
[1740056883636,7.28484,2745.5,2745.2,0.262]
[1740056884134,3.64247,2745.4,2745.2,0.262]
[1740056884503,3.64247,2745.4,2745.1,0.69738792]
[1740056884702,3.64247,2745.4,2745.2,0.262]
[1740056891538,3.64247,2745.4,2745.3,0.261]
[1740056892445,3.64247,2745.4,2745.0,6.71180916]
[1740056892651,3.64247,2745.4,2745.3,0.261]
[1740056894048,0.7718,2745.7,2745.3,0.261]
[1740056894272,0.7864,2746.4,2745.9,3.64178]
[1740056894475,0.7864,2746.4,2745.8,0.7708]
[1740056894694,0.7891,2746.6,2746.2,3.64139]
[1740056894896,3.64095,2746.6,2746.3,0.261]
[1740056895302,0.7891,2746.8,2746.3,0.261]
[1740056895453,0.81650406,2747.0,2746.5,3.64092]
[1740056895652,0.81650406,2747.0,2746.5,3.64091]
[1740056895876,4.3932,2747.1,2746.5,3.64091]
[1740056896405,3.64036,2747.0,2746.5,3.64091]
[1740056896611,4.3932,2747.1,2746.5,3.64091]
[1740056896754,8.03348,2747.1,2746.5,3.64091]
[1740056897098,0.7546,2747.3,2746.6,0.7808]
[1740056897398,3.64008,2747.2,2746.6,4.42153]
[1740056898268,3.64008,2747.2,2746.6,8.06232]
[1740056898610,0.7546,2747.3,2746.6,4.42153]
[1740056898894,3.64018,2747.2,2746.6,4.42153]
[1740056899096,3.64015,2747.2,2746.6,4.42153]
[1740056899906,7.28079,2747.0,2746.6,0.7808]
[1740056900084,3.64016,2747.2,2746.5,3.64099]
[1740056900267,3.64033,2747.0,2746.5,3.64099]
[1740056900807,3.64033,2747.0,2746.6,0.262]
[1740056902392,3.64033,2747.0,2746.7,0.262]
[1740056903908,3.64033,2747.0,2746.8,0.262]
[1740056904301,3.64028,2747.1,2746.8,0.262]
[1740056904612,3.6402,2747.1,2746.8,0.262]
[1740056904901,3.6402,2747.1,2746.5,3.64099]
[1740056905055,3.64028,2747.1,2746.9,0.262]
[1740056905258,3.64016,2747.2,2746.9,0.262]
[1740056905490,3.64033,2747.0,2746.9,0.262]
[1740056906508,3.64033,2747.0,2746.9,0.261]
[1740056908507,3.64033,2747.0,2746.5,3.64097]
[1740056908674,3.64033,2747.0,2746.9,0.261]
[1740056912613,3.6402,2747.1,2746.9,0.261]
[1740056912816,7.28049,2747.1,2746.9,0.261]
[1740056913118,3.6402,2747.1,2746.9,0.261]
[1740056913470,7.28052,2747.1,2746.9,0.261]
[1740056913674,7.28052,2747.1,2746.6,3.64076]
[1740056913904,7.28052,2747.1,2746.7,0.261]
[1740056914228,3.64039,2747.0,2746.7,0.261]
[1740056914516,3.64053,2746.9,2746.7,0.261]
[1740056914812,3.64034,2747.0,2746.7,0.261]
[1740056915499,3.64034,2747.0,2746.8,0.261]
[1740056916302,3.64046,2746.9,2746.8,0.261]
[1740056917813,3.64046,2746.9,2746.5,3.64093]
[1740056917971,3.64046,2746.9,2746.6,0.261]
[1740056919024,3.64046,2746.9,2746.7,0.261]
[1740056919323,3.64024,2747.1,2746.7,0.261]
[1740056919482,3.64039,2747.0,2746.7,0.261]
[1740056919803,3.64048,2746.9,2746.7,0.261]
[1740056919984,3.64035,2747.0,2746.7,0.261]
[1740056920185,3.64042,2747.0,2746.7,0.261]
[1740056920971,3.64042,2747.0,2746.8,0.26]
[1740056924005,3.64046,2746.9,2746.5,3.64087]
[1740056924212,3.64042,2747.0,2746.6,0.26]
[1740056924510,3.64042,2747.0,2746.6,3.90085]
[1740056926718,3.64046,2746.9,2746.6,0.26]
[1740056927213,3.64034,2747.0,2746.6,0.26]
[1740056928110,3.64034,2747.0,2746.5,3.64098]
[1740056928278,3.64034,2747.0,2746.7,0.26]
[1740056929410,3.64055,2746.9,2746.7,0.26]
[1740056929583,3.64034,2747.0,2746.7,0.26]
[1740056929791,3.64053,2746.9,2746.4,0.7534]
[1740056930094,3.64065,2746.8,2746.5,0.26]
[1740056930922,3.64065,2746.8,2746.6,0.26]
[1740056931081,7.28134,2746.8,2746.6,0.26]
[1740056931409,3.64065,2746.8,2746.7,0.26]
[1740056932856,3.64065,2746.8,2746.4,0.7534]
[1740056933016,3.64065,2746.8,2746.7,0.26]
[1740056934251,3.64065,2746.8,2746.4,0.7534]
[1740056934457,0.7966,2746.8,2746.1,3.64141]
[1740056934667,3.64123,2746.4,2746.2,0.26]
[1740056935937,3.64123,2746.4,2746.3,0.26]
[1740056937059,3.64134,2746.3,2746.0,0.758]
[1740056937258,3.64139,2746.2,2745.8,8.16464968]
[1740056937929,3.64139,2746.2,2745.9,0.26]
[1740056938257,4.47237,2746.3,2745.9,3.90177]
[1740056938419,4.47237,2746.3,2745.9,3.64177]
[1740056938622,4.47237,2746.3,2746.0,0.26]
[1740056939217,3.64146,2746.2,2746.0,0.26]
[1740056939660,3.64146,2746.2,2746.1,0.26]
[1740056940731,4.47244,2746.3,2746.1,0.26]
[1740056941142,0.8311,2746.3,2745.8,3.69296968]
[1740056941460,3.64166,2746.0,2745.9,0.26]
[1740056941661,4.24747956,2746.3,2745.9,0.26]
[1740056941865,7.28296,2746.2,2745.9,0.26]
[1740056942062,3.64145,2746.2,2745.9,0.26]
[1740056942228,3.64153,2746.1,2745.9,0.26]
[1740056944485,3.64166,2746.0,2745.9,0.26]
[1740056944632,4.43766,2746.0,2745.9,0.26]
[1740056945466,4.43766,2746.0,2745.8,3.95196968]
[1740056946372,3.64179,2745.9,2745.8,3.95196968]
[1740056946946,3.64179,2745.9,2745.8,3.69296968]
[1740056947351,4.43819,2745.9,2745.8,3.69296968]
[1740056951145,9.67819,2745.9,2745.8,3.69296968]
[1740056960193,13.22819,2745.9,2745.8,3.69296968]
[1740056962461,13.22819,2745.9,2745.8,9.68e-06]
[1740056965095,13.22819,2745.9,2744.9,0.259]
[1740056965096,3.64297,2745.1,2744.9,0.259]
[1740056965264,7.2859,2745.1,2744.9,0.259]
[1740056965464,3.64298,2745.0,2744.9,0.259]
[1740056966616,9.44987956,2745.3,2744.6,0.7872]
[1740056966775,3.64319,2744.9,2744.7,0.259]
[1740056966970,3.64301,2745.0,2744.7,0.259]
[1740056967299,3.64312,2744.9,2744.7,0.259]
[1740056967865,3.64289,2745.1,2744.7,0.259]
[1740056968222,3.64308,2745.0,2744.7,0.259]
[1740056968923,8.88308,2745.0,2744.7,0.259]
[1740056969208,3.64326,2744.8,2744.6,0.7872]
[1740056969367,3.64326,2744.8,2744.4,0.8075]
[1740056969569,3.64338,2744.7,2744.6,0.259]
[1740056970011,3.64338,2744.7,2744.4,0.8075]
[1740056972718,7.28685,2744.7,2744.4,0.8075]
[1740056972887,3.64338,2744.7,2744.4,0.8075]
[1740056973091,7.28685,2744.7,2744.4,0.8075]
[1740056973436,3.64338,2744.7,2744.4,0.8075]
[1740056979535,3.64356,2744.6,2744.3,0.259]
[1740056979711,3.64338,2744.7,2744.3,0.259]
[1740056979712,4.40581,2744.5,2744.3,0.259]
[1740056979891,0.7621,2744.5,2744.3,0.259]
[1740056980234,4.40578,2744.5,2744.3,0.259]
[1740056980426,4.40578,2744.5,2744.1,3.64407]
[1740056980621,4.40578,2744.5,2744.2,0.259]
[1740056980790,0.7621,2744.5,2744.2,0.259]
[1740056981124,3.64357,2744.6,2744.2,0.259]
[1740056981625,8.88334,2744.8,2744.4,0.7588]
[1740056981626,8.88327,2744.8,2744.4,0.7588]
[1740056981926,3.64352,2744.6,2744.4,0.7588]
[1740056985427,4.44558,2744.5,2744.2,0.259]
[1740056985930,3.6438,2744.4,2744.2,0.259]
[1740056986301,3.6438,2744.4,2744.0,4.44734]
[1740056986501,3.6438,2744.4,2744.1,0.258]
[1740056986698,0.8019,2744.5,2744.0,0.8031]
[1740056986699,3.64395,2744.3,2744.0,0.8031]
[1740056986898,3.64395,2744.3,2744.1,0.258]
[1740056987203,3.64395,2744.3,2744.0,1.0611]
[1740056988350,3.6438,2744.4,2744.0,1.0611]
[1740056989761,8.8838,2744.4,2744.0,1.0611]
[1740056989912,8.88385,2744.4,2744.0,1.0611]
[1740056990931,3.64393,2744.3,2744.0,1.0611]
[1740056992168,3.64393,2744.3,2744.0,0.258]
[1740056992370,3.64408,2744.2,2744.0,0.258]
[1740056993050,3.64423,2744.1,2743.9,0.258]
[1740056993748,3.64423,2744.1,2743.8,3.55554787]
[1740056993945,3.64425,2744.1,2743.8,3.81354787]
[1740056994667,3.64444,2743.9,2743.8,3.55554787]
[1740056994977,3.64444,2743.9,2743.8,2.72414787]
[1740057000469,4.40774,2743.9,2743.8,2.72414787]
[1740057001141,3.64444,2743.9,2743.8,2.72414787]
[1740057003069,4.94804,2743.9,2743.8,2.72414787]
[1740057003276,4.94804,2743.9,2743.2,1.0624]
[1740057003441,7.29012,2743.5,2743.2,1.0624]
[1740057003777,5.24,2743.8,2743.2,1.0624]
[1740057003977,3.64492,2743.6,2743.2,1.0624]
[1740057004475,3.64508,2743.5,2743.2,1.0624]
[1740057006036,3.64491,2743.6,2743.2,1.0624]
[1740057006438,3.64477,2743.7,2743.2,1.0624]
[1740057006638,3.64499,2743.5,2743.2,1.0624]
[1740057006852,3.64499,2743.5,2743.2,0.8044]
[1740057007051,3.64521,2743.4,2743.1,3.34e-06]
[1740057008794,3.64537,2743.2,2743.1,3.34e-06]
[1740057010092,8.43924956,2743.2,2743.1,3.34e-06]
[1740057013500,13.67924956,2743.2,2743.1,3.34e-06]
[1740057015205,10.26287,2743.2,2743.1,3.34e-06]
[1740057022202,6.6175,2743.2,2743.1,3.34e-06]
[1740057022385,10.26287,2743.2,2743.1,3.34e-06]
[1740057022581,7.72875657,2743.2,2743.1,3.34e-06]
[1740057022790,10.54662657,2743.2,2743.1,3.34e-06]
[1740057023228,6.90125657,2743.2,2743.1,3.34e-06]
[1740057024425,10.54662657,2743.2,2743.1,3.34e-06]
[1740057024777,5.24,2743.2,2743.1,3.34e-06]
[1740057025297,8.88537,2743.2,2743.1,3.34e-06]
[1740057025494,5.30662657,2743.2,2743.1,3.34e-06]
[1740057026386,8.88524,2743.3,2743.1,3.34e-06]
[1740057027229,12.53059,2743.3,2743.1,3.34e-06]
[1740057027388,8.88524,2743.3,2743.1,3.34e-06]
[1740057027801,12.53056,2743.3,2743.1,3.34e-06]
[1740057028002,8.88524,2743.3,2743.1,3.34e-06]
[1740057028202,5.30662657,2743.2,2743.1,3.34e-06]